fUSD/lending_fUSD_20251122
["ID","MTS","AMOUNT","RATE_DAILY","PERIOD"]
[394628148,1763795473276,-1167.28,0.0001726,2]
[394628149,1763795473285,-816.49,0.0001726,2]
[394628150,1763795473295,-609.46,0.0001726,2]
[394628151,1763795473305,-500.0,0.0001726,2]
[394628152,1763795473315,-1508.97,0.0001726,2]
[394628153,1763795473325,-500.0,0.0001726,2]
[394628154,1763795473334,-990.34,0.0001726,2]
[394628155,1763795473343,-545.88,0.0001726,2]
[394628156,1763795473353,-500.0,0.0001726,2]
[394628157,1763795473362,-307.30493538,0.0001726,2]
[394628158,1763795473372,-543.02,0.0001726,2]
[394628159,1763795473382,-646.95,0.0001726,2]
[394628160,1763795473391,-500.0,0.0001726,2]
[394628161,1763795473401,-500.0,0.0001726,2]
[394628162,1763795473411,-500.0,0.0001726,2]
[394628163,1763795473420,-669.39,0.0001726,2]
[394628164,1763795473430,-500.0,0.0001726,2]
[394628165,1763795473439,-500.0,0.0001726,2]
[394628166,1763795473448,-796.52,0.0001726,2]
[394628167,1763795473458,-549.37,0.0001726,2]
[394628168,1763795473468,-991.62,0.0001726,2]
[394628169,1763795473478,-500.0,0.0001726,2]
[394628170,1763795473487,-633.17,0.0001726,2]
[394628171,1763795473497,-500.0,0.0001726,2]
[394628172,1763795473575,-500.0,0.0001726,2]
[394628173,1763795473586,-751.7,0.0001726,2]
[394628174,1763795473595,-746.32,0.0001726,2]
[394628175,1763795473605,-1285.18,0.0001726,2]
[394628176,1763795473614,-500.0,0.0001726,2]
[394628177,1763795473624,-500.0,0.0001726,2]
[394628178,1763795473633,-500.0,0.0001726,2]
[394628179,1763795473642,-500.0,0.0001726,2]
[394628180,1763795473651,-663.91,0.0001726,2]
[394628181,1763795473660,-652.22,0.0001726,2]
[394628182,1763795473670,-1913.84,0.0001726,2]
[394628183,1763795473679,-524.31360052,0.0001726,2]
[394628184,1763795473689,-500.0,0.0001726,2]
[394628185,1763795473698,-820.04,0.0001726,2]
[394628186,1763795473708,-779.07,0.0001726,2]
[394628187,1763795473723,-500.0,0.0001726,2]
[394628188,1763795473733,-710.26,0.0001726,2]
[394628189,1763795473743,-500.0,0.0001726,2]
[394628190,1763795473753,-972.58,0.0001726,2]
[394628191,1763795473763,-500.0,0.0001726,2]
[394628192,1763795473772,-602.39110848,0.0001726,2]
[394628193,1763795473782,-500.0,0.0001726,2]
[394628194,1763795473791,-1150.96,0.0001726,2]
[394628195,1763795473803,-500.0,0.0001726,2]
[394628196,1763795473813,-500.0,0.0001726,2]
[394628197,1763795473823,-500.0,0.0001726,2]
[394628198,1763795473834,-248.62767836,0.0001726,2]
[394628199,1763795473843,-500.0,0.0001726,2]
[394628200,1763795473852,-500.0,0.0001726,2]
[394628201,1763795473861,-500.0,0.0001726,2]
[394628202,1763795473871,-835.25,0.0001726,2]
[394628203,1763795473880,-783.43,0.0001726,2]
[394628204,1763795473889,-500.0,0.0001726,2]
[394628205,1763795473899,-500.0,0.0001726,2]
[394628206,1763795473909,-555.01,0.0001726,2]
[394628207,1763795473919,-500.0,0.0001726,2]
[394628208,1763795473927,-500.0,0.0001726,2]
[394628209,1763795473938,-500.0,0.0001726,2]
[394628210,1763795473947,-567.49,0.0001726,2]
[394628211,1763795473956,-500.0,0.0001726,2]
[394628212,1763795473965,-468.6669182,0.0001726,2]
[394628213,1763795473975,-500.0,0.0001726,2]
[394628214,1763795473984,-862.12,0.0001726,2]
[394628215,1763795473993,-712.13,0.0001726,2]
[394628216,1763795474002,-882.47,0.0001726,2]
[394628217,1763795474012,-536.79284084,0.0001726,2]
[394628218,1763795474021,-500.0,0.0001726,2]
[394628219,1763795474031,-500.0,0.0001726,2]
[394628220,1763795474041,-930.74,0.0001726,2]
[394628221,1763795474050,-500.0,0.0001726,2]
[394628222,1763795474060,-500.0,0.0001726,2]
[394628223,1763795474069,-500.0,0.0001726,2]
[394628224,1763795474079,-986.57,0.0001726,2]
[394628225,1763795474088,-500.0,0.0001726,2]
[394628226,1763795474099,-684.09,0.0001726,2]
[394628227,1763795474109,-622.4,0.0001726,2]
[394628228,1763795474119,-500.0,0.0001726,2]
[394628229,1763795474128,-500.0,0.0001726,2]
[394628230,1763795474139,-636.78,0.0001726,2]
[394628231,1763795474148,-903.87,0.0001726,2]
[394628232,1763795474157,-552.67,0.0001726,2]
[394628233,1763795474167,-650.37,0.0001726,2]
[394628234,1763795474177,-500.0,0.0001726,2]
[394628235,1763795474187,-500.0,0.0001726,2]
[394628236,1763795474196,-949.19,0.0001726,2]
[394628237,1763795474206,-500.0,0.0001726,2]
[394628238,1763795474215,-511.73,0.0001726,2]
[394628239,1763795474225,-500.0,0.0001726,2]
[394628240,1763795474234,-1022.1,0.0001726,2]
[394628241,1763795474243,-500.0,0.0001726,2]
[394628242,1763795474253,-596.89,0.0001726,2]
[394628243,1763795474262,-500.0,0.0001726,2]
[394628244,1763795474272,-840.6,0.0001726,2]
[394628245,1763795474281,-906.66,0.0001726,2]
[394628246,1763795474290,-330.12146164,0.0001726,2]
[394628247,1763795474300,-500.0,0.0001726,2]
[394628248,1763795474310,-683.84,0.0001726,2]
[394628249,1763795474321,-802.44,0.0001726,2]
[394628250,1763795474331,-500.0,0.0001726,2]
[394628251,1763795474342,-500.0,0.0001726,2]
[394628252,1763795474353,-500.0,0.0001726,2]
[394628253,1763795474362,-500.0,0.0001726,2]
[394628254,1763795474372,-466.39754458,0.0001726,2]
[394628255,1763795474381,-500.0,0.0001726,2]
[394628256,1763795474393,-500.0,0.0001726,2]
[394628257,1763795474403,-1663.26,0.0001726,2]
[394628258,1763795474413,-500.0,0.0001726,2]
[394628259,1763795474422,-590.17,0.0001726,2]
[394628260,1763795474431,-340.54533002,0.0001726,2]
[394628261,1763795474441,-500.0,0.0001726,2]
[394628262,1763795474450,-500.0,0.0001726,2]
[394628263,1763795474459,-710.85,0.0001726,2]
[394628264,1763795474469,-642.27,0.0001726,2]
[394628265,1763795474479,-878.89,0.0001726,2]
[394628266,1763795474488,-500.0,0.0001726,2]
[394628267,1763795474498,-500.0,0.0001726,2]
[394628268,1763795474507,-500.0,0.0001726,2]
[394628269,1763795474516,-554.72,0.0001726,2]
[394628270,1763795474526,-500.0,0.0001726,2]
[394628271,1763795474535,-500.0,0.0001726,2]
[394628272,1763795474544,-500.0,0.0001726,2]
[394628273,1763795474553,-571.32,0.0001726,2]
[394628274,1763795474563,-664.81,0.0001726,2]
[394628275,1763795474572,-500.0,0.0001726,2]
[394628276,1763795474581,-500.0,0.0001726,2]
[394628277,1763795474590,-500.0,0.0001726,2]
[394628278,1763795474599,-500.0,0.0001726,2]
[394628279,1763795474608,-500.0,0.0001726,2]
[394628280,1763795474618,-571.23,0.0001726,2]
[394628281,1763795474627,-1071.02,0.0001726,2]
[394628282,1763795474637,-907.63,0.0001726,2]
[394628283,1763795474647,-500.0,0.0001726,2]
[394628284,1763795474659,-500.0,0.0001726,2]
[394628285,1763795474670,-500.0,0.0001726,2]
[394628286,1763795474679,-500.0,0.0001726,2]
[394628287,1763795474689,-560.13397955,0.0001726,2]
[394628288,1763795474703,-1282.27,0.0001726,2]
[394628289,1763795474713,-510.31,0.0001726,2]
[394628290,1763795474722,-500.0,0.0001726,2]
[394628291,1763795474733,-500.0,0.0001726,2]
[394628292,1763795474742,-551.38,0.0001726,2]
[394628293,1763795474752,-500.0,0.0001726,2]
[394628294,1763795474762,-500.0,0.0001726,2]
[394628295,1763795474772,-500.0,0.0001726,2]
[394628296,1763795474782,-500.0,0.0001726,2]
[394628297,1763795474791,-500.0,0.0001726,2]
[394628298,1763795474801,-4611.01,0.0001726,2]
[394628299,1763795474810,-500.0,0.0001726,2]
[394628300,1763795474819,-559.84,0.0001726,2]
[394628301,1763795474829,-500.0,0.0001726,2]
[394628302,1763795474838,-500.0,0.0001726,2]
[394628303,1763795474847,-731.85,0.0001726,2]
[394628304,1763795474856,-500.0,0.0001726,2]
[394628305,1763795474866,-500.0,0.0001726,2]
[394628306,1763795474875,-921.22,0.0001726,2]
[394628307,1763795474884,-500.0,0.0001726,2]
[394628308,1763795474894,-500.0,0.0001726,2]
[394628309,1763795474910,-538.25,0.0001726,2]
[394628310,1763795474919,-1314.18,0.0001726,2]
[394628311,1763795474929,-564.41,0.0001726,2]
[394628312,1763795474940,-500.0,0.0001726,2]
[394628313,1763795474951,-745.5,0.0001726,2]
[394628314,1763795474962,-1084.77,0.0001726,2]
[394628315,1763795474972,-500.0,0.0001726,2]
[394628316,1763795474982,-500.0,0.0001726,2]
[394628317,1763795474991,-868.15,0.0001726,2]
[394628318,1763795475000,-500.0,0.0001726,2]
[394628319,1763795475010,-500.0,0.0001726,2]
[394628320,1763795475020,-500.0,0.0001726,2]
[394628321,1763795475030,-549.89692716,0.0001726,2]
[394628322,1763795475040,-1394.24,0.0001726,2]
[394628323,1763795475050,-833.98,0.0001726,2]
[394628324,1763795475059,-1003.9,0.0001726,2]
[394628325,1763795475068,-968.93,0.0001726,2]
[394628326,1763795475077,-500.0,0.0001726,2]
[394628327,1763795475086,-500.0,0.0001726,2]
[394628328,1763795475102,-500.0,0.0001726,2]
[394628329,1763795475111,-500.0,0.0001726,2]
[394628330,1763795475121,-1270.78,0.0001726,2]
[394628331,1763795475132,-591.78,0.0001726,2]
[394628332,1763795475143,-500.0,0.0001726,2]
[394628333,1763795475154,-1323.25,0.0001726,2]
[394628334,1763795475163,-500.0,0.0001726,2]
[394628335,1763795475174,-500.0,0.0001726,2]
[394628336,1763795475183,-500.0,0.0001726,2]
[394628337,1763795475193,-500.0,0.0001726,2]
[394628338,1763795475202,-960.48,0.0001726,2]
[394628339,1763795475211,-500.0,0.0001726,2]
[394628340,1763795475220,-1270.58,0.0001726,2]
[394628341,1763795475231,-1756.44,0.0001726,2]
[394628342,1763795475241,-259.5992985,0.0001726,2]
[394628343,1763795475250,-5897.28,0.0001726,2]
[394628344,1763795475260,-300.0,0.0001726,2]
[394628345,1763795475269,-500.0,0.0001726,2]
[394628346,1763795475280,-673.29,0.0001726,2]
[394628347,1763795475290,-642.99,0.0001726,2]
[394628348,1763795475299,-500.0,0.0001726,2]
[394628349,1763795475309,-285.81674519,0.0001726,2]
[394628350,1763795475319,-793.06,0.0001726,2]
[394628351,1763795475330,-539.56,0.0001726,2]
[394628352,1763795475340,-500.0,0.0001726,2]
[394628353,1763795475349,-500.0,0.0001726,2]
[394628354,1763795475359,-500.0,0.0001726,2]
[394628355,1763795475369,-500.0,0.0001726,2]
[394628356,1763795475379,-500.0,0.0001726,2]
[394628357,1763795475389,-500.0,0.0001726,2]
[394628358,1763795475398,-500.0,0.0001726,2]
[394628359,1763795475408,-1013.52,0.0001726,2]
[394628360,1763795475416,-500.0,0.0001726,2]
[394628361,1763795475426,-732.25,0.0001726,2]
[394628362,1763795475435,-500.0,0.0001726,2]
[394628363,1763795475444,-500.0,0.0001726,2]
[394628364,1763795475454,-500.0,0.0001726,2]
[394628365,1763795475463,-3543.04,0.0001726,2]
[394628366,1763795475473,-500.0,0.0001726,2]
[394628367,1763795475483,-500.0,0.0001726,2]
[394628368,1763795475492,-500.0,0.0001726,2]
[394628369,1763795475502,-1235.15,0.0001726,2]
[394628370,1763795475512,-1277.22,0.0001726,2]
[394628371,1763795475522,-500.0,0.0001726,2]
[394628372,1763795475531,-500.0,0.0001726,2]
[394628373,1763795475541,-229.27365468,0.0001726,2]
[394628374,1763795475550,-607.68622127,0.0001726,2]
[394628375,1763795475560,-163.53790075,0.0001726,2]
[394628376,1763795475569,-500.0,0.0001726,2]
[394628377,1763795475580,-500.0,0.0001726,2]
[394628378,1763795475589,-500.0,0.0001726,2]
[394628379,1763795475599,-500.0,0.0001726,2]
[394628380,1763795475608,-500.0,0.0001726,2]
[394628381,1763795475618,-1044.2,0.0001726,2]
[394628382,1763795475628,-740.95,0.0001726,2]
[394628383,1763795475637,-500.0,0.0001726,2]
[394628384,1763795475647,-500.0,0.0001726,2]
[394628385,1763795475656,-804.88,0.0001726,2]
[394628386,1763795475666,-500.0,0.0001726,2]
[394628387,1763795475675,-698.82,0.0001726,2]
[394628388,1763795475684,-726.81,0.0001726,2]
[394628389,1763795475694,-500.0,0.0001726,2]
[394628390,1763795475703,-352.34916039,0.0001726,2]
[394628391,1763795475712,-500.0,0.0001726,2]
[394628392,1763795475721,-500.0,0.0001726,2]
[394628393,1763795475732,-500.0,0.0001726,2]
[394628394,1763795475741,-597.4,0.0001726,2]
[394628395,1763795475750,-336.91994078,0.0001726,2]
[394628396,1763795475759,-500.0,0.0001726,2]
[394628397,1763795475768,-691.58,0.0001726,2]
[394628398,1763795475777,-564.65,0.0001726,2]
[394628399,1763795475786,-500.0,0.0001726,2]
[394628400,1763795475795,-500.0,0.0001726,2]
[394628401,1763795475804,-412.0734531,0.0001726,2]
[394628402,1763795475814,-500.0,0.0001726,2]
[394628403,1763795475823,-500.0,0.0001726,2]
[394628404,1763795475834,-498.05,0.0001726,2]
[394628405,1763795475844,-500.0,0.0001726,2]
[394628406,1763795475854,-655.79,0.0001726,2]
[394628407,1763795475863,-500.0,0.0001726,2]
[394628408,1763795475873,-508.24111164,0.0001726,2]
[394628409,1763795475883,-500.0,0.0001726,2]
[394628410,1763795475893,-782.5,0.0001726,2]
[394628411,1763795475902,-647.09,0.0001726,2]
[394628412,1763795475912,-500.0,0.0001726,2]
[394628413,1763795475921,-904.27,0.0001726,2]
[394628414,1763795475931,-332.96699416,0.0001726,2]
[394628415,1763795475942,-1622.6,0.0001726,2]
[394628416,1763795475951,-500.0,0.0001726,2]
[394628417,1763795475962,-500.0,0.0001726,2]
[394628418,1763795475972,-733.12,0.0001726,2]
[394628419,1763795475982,-787.46,0.0001726,2]
[394628420,1763795475991,-517.93748169,0.0001726,2]
[394628421,1763795476002,-500.0,0.0001726,2]
[394628422,1763795476012,-3465.48,0.0001726,2]
[394628423,1763795476021,-500.0,0.0001726,2]
[394628424,1763795476030,-500.0,0.0001726,2]
[394628425,1763795476040,-500.0,0.0001726,2]
[394628426,1763795476051,-500.0,0.0001726,2]
[394628427,1763795476062,-500.0,0.0001726,2]
[394628428,1763795476072,-1361.43,0.0001726,2]
[394628429,1763795476081,-500.0,0.0001726,2]
[394628430,1763795476091,-619.67532525,0.0001726,2]
[394628431,1763795476104,-517.54,0.0001726,2]
[394628432,1763795476113,-500.0,0.0001726,2]
[394628433,1763795476123,-500.0,0.0001726,2]
[394628434,1763795476132,-500.0,0.0001726,2]
[394628435,1763795476142,-500.0,0.0001726,2]
[394628436,1763795476151,-2776.22,0.0001726,2]
[394628437,1763795476161,-500.0,0.0001726,2]
[394628438,1763795476170,-953.39,0.0001726,2]
[394628439,1763795476182,-500.0,0.0001726,2]
[394628440,1763795476191,-200.50836993,0.0001726,2]
[394628441,1763795476201,-679.39,0.0001726,2]
[394628442,1763795476210,-640.76,0.0001726,2]
[394628443,1763795476219,-1700.59,0.0001726,2]
[394628444,1763795476229,-500.0,0.0001726,2]
[394628445,1763795476238,-500.0,0.0001726,2]
[394628446,1763795476247,-500.0,0.0001726,2]
[394628447,1763795476257,-1365.73,0.0001726,2]
[394628448,1763795476266,-1141.67,0.0001726,2]
[394628449,1763795476276,-1067.76,0.0001726,2]
[394628450,1763795476286,-500.0,0.0001726,2]
[394628451,1763795476295,-500.0,0.0001726,2]
[394628452,1763795476305,-500.0,0.0001726,2]
[394628453,1763795476314,-505.09,0.0001726,2]
[394628454,1763795476323,-500.0,0.0001726,2]
[394628455,1763795476332,-597.03,0.0001726,2]
[394628456,1763795476342,-500.0,0.0001726,2]
[394628457,1763795476352,-637.73775243,0.0001726,2]
[394628458,1763795476361,-228.99619746,0.0001726,2]
[394628459,1763795476371,-500.0,0.0001726,2]
[394628460,1763795476380,-205.53435277,0.0001726,2]
[394628461,1763795476390,-1561.68,0.0001726,2]
[394628462,1763795476399,-2836.92,0.0001726,2]
[394628463,1763795476409,-500.0,0.0001726,2]
[394628464,1763795476418,-549.36,0.0001726,2]
[394628465,1763795476429,-500.0,0.0001726,2]
[394628466,1763795476438,-500.0,0.0001726,2]
[394628467,1763795476449,-500.0,0.0001726,2]
[394628468,1763795476459,-589.84751143,0.0001726,2]
[394628469,1763795476469,-500.0,0.0001726,2]
[394628470,1763795476479,-500.0,0.0001726,2]
[394628471,1763795476488,-184.08434456,0.0001726,2]
[394628472,1763795476498,-500.0,0.0001726,2]
[394628473,1763795476508,-500.0,0.0001726,2]
[394628474,1763795476518,-1018.18,0.0001726,2]
[394628475,1763795476527,-759.31,0.0001726,2]
[394628476,1763795476537,-1213.88,0.0001726,2]
[394628477,1763795476547,-2177.24,0.0001726,2]
[394628478,1763795476556,-910.36,0.0001726,2]
[394628479,1763795476566,-500.0,0.0001726,2]
[394628480,1763795476575,-500.0,0.0001726,2]
[394628481,1763795476584,-500.0,0.0001726,2]
[394628482,1763795476593,-500.0,0.0001726,2]
[394628483,1763795476603,-500.0,0.0001726,2]
[394628484,1763795476612,-1090.15,0.0001726,2]
[394628485,1763795476621,-1094.76,0.0001726,2]
[394628486,1763795476630,-672.23,0.0001726,2]
[394628487,1763795476639,-500.0,0.0001726,2]
[394628488,1763795476649,-500.0,0.0001726,2]
[394628489,1763795476658,-872.6,0.0001726,2]
[394628490,1763795476667,-500.0,0.0001726,2]
[394628491,1763795476676,-500.0,0.0001726,2]
[394628492,1763795476687,-500.0,0.0001726,2]
[394628493,1763795476696,-500.0,0.0001726,2]
[394628494,1763795476705,-500.0,0.0001726,2]
[394628495,1763795476715,-500.0,0.0001726,2]
[394628496,1763795476724,-8935.96,0.0001726,2]
[394628497,1763795476733,-1399.76,0.0001726,2]
[394628498,1763795476743,-2311.26,0.0001726,2]
[394628499,1763795476752,-626.87,0.0001726,2]
[394628500,1763795476761,-500.0,0.0001726,2]
[394628501,1763795476771,-773.67,0.0001726,2]
[394628502,1763795476780,-902.42,0.0001726,2]
[394628503,1763795476790,-500.0,0.0001726,2]
[394628504,1763795476800,-500.0,0.0001726,2]
[394628505,1763795476809,-567.95865232,0.0001726,2]
[394628506,1763795476819,-531.43,0.0001726,2]
[394628507,1763795476828,-500.0,0.0001726,2]
[394628508,1763795476838,-500.0,0.0001726,2]
[394628509,1763795476848,-2809.48,0.0001726,2]
[394628510,1763795476857,-500.0,0.0001726,2]
[394628511,1763795476868,-873.93,0.0001726,2]
[394628512,1763795476877,-819.4,0.0001726,2]
[394628513,1763795476888,-301.82008914,0.00017265,2]
[394628514,1763795476898,-150.0,0.0001728,2]
[394628515,1763795476908,-500.0,0.0001728,2]
[394628516,1763795476918,-315.67396154,0.0001728,2]
[394628517,1763795476928,-187.3046367,0.0001728,2]
[394628518,1763795476938,-500.0,0.0001728,2]
[394628519,1763795476948,-150.0,0.0001728,2]
[394628520,1763795476958,-150.0,0.0001728,2]
[394628521,1763795476967,-219.54046152,0.0001728,2]
[394628522,1763795476976,-500.33616609,0.0001728,2]
[394628523,1763795476986,-520.0,0.0001728,2]
[394628524,1763795476996,-618.0,0.0001728,2]
[394628525,1763795477005,-500.0,0.0001728,2]
[394628526,1763795477016,-500.0,0.0001728,2]
[394628527,1763795477027,-203.52471131,0.0001728,2]
[394628528,1763795477037,-156.91420768,0.0001728,2]
[394628529,1763795477046,-500.0,0.0001728,2]
[394628530,1763795477057,-726.0,0.0001728,2]
[394628531,1763795477067,-500.0,0.0001728,2]
[394628532,1763795477077,-639.12847958,0.0001728,2]
[394628533,1763795477087,-150.0,0.0001728,2]
[394628534,1763795477098,-500.0,0.0001728,2]
[394628535,1763795477113,-150.0,0.0001728,2]
[394628536,1763795477123,-205.08574528,0.0001728,2]
[394628537,1763795477133,-500.0,0.0001728,2]
[394628538,1763795477143,-500.0,0.0001728,2]
[394628539,1763795477153,-500.0,0.0001728,2]
[394628540,1763795477163,-500.0,0.0001728,2]
[394628541,1763795477173,-484.0,0.0001728,2]
[394628542,1763795477183,-108146.0,0.00017288,2]
[394628543,1763795477193,-168.0,0.00017295,2]
[394628544,1763795477203,-168.0,0.000173,2]
[394628545,1763795477214,-168.0,0.00017301,2]
[394628546,1763795477224,-200.0,0.00017312,2]
[394628547,1763795477234,-182.93083325,0.00017315,2]
[394628548,1763795477244,-500.0,0.00017315,2]
[394628549,1763795477254,-377.11295136,0.00017315,2]
[394628550,1763795477264,-500.0,0.00017315,2]
[394628551,1763795477274,-500.0,0.00017315,2]
[394628552,1763795477284,-500.0,0.00017315,2]
[394628553,1763795477293,-500.0,0.00017315,2]
[394628554,1763795477303,-1209.88,0.00017315,2]
[394628555,1763795477312,-5154.75,0.00017315,2]
[394628556,1763795477323,-500.0,0.00017315,2]
[394628557,1763795477333,-995.45,0.00017315,2]
[394628558,1763795477343,-666.13,0.00017315,2]
[394628559,1763795477354,-500.0,0.00017315,2]
[394628560,1763795477363,-1192.89,0.00017315,2]
[394628561,1763795477373,-661.37,0.00017315,2]
[394628562,1763795477383,-719.39,0.00017315,2]
[394628563,1763795477393,-500.0,0.00017315,2]
[394628564,1763795477403,-500.0,0.00017315,2]
[394628565,1763795477412,-868.51,0.00017315,2]
[394628566,1763795477422,-618.38,0.00017315,2]
[394628567,1763795477432,-500.0,0.00017315,2]
[394628568,1763795477448,-500.0,0.00017315,2]
[394628569,1763795477464,-1206.92,0.00017315,2]
[394628570,1763795477474,-659.86,0.00017315,2]
[394628571,1763795477486,-500.0,0.00017315,2]
[394628572,1763795477496,-580.63386295,0.00017315,2]
[394628573,1763795477507,-500.0,0.00017315,2]
[394628574,1763795477517,-610.19905511,0.00017315,2]
[394628575,1763795477528,-500.0,0.00017315,2]
[394628576,1763795477539,-500.0,0.00017315,2]
[394628577,1763795477549,-793.08,0.00017315,2]
[394628578,1763795477559,-500.0,0.00017315,2]
[394628579,1763795477572,-500.0,0.00017315,2]
[394628580,1763795477583,-500.0,0.00017315,2]
[394628581,1763795477593,-500.0,0.00017315,2]
[394628582,1763795477603,-586.88176949,0.00017315,2]
[394628583,1763795477613,-752.21,0.00017315,2]
[394628584,1763795477623,-724.34,0.00017315,2]
[394628585,1763795477634,-192.70031803,0.00017315,2]
[394628586,1763795477644,-858.11,0.00017315,2]
[394628587,1763795477654,-151.16475053,0.00017315,2]
[394628588,1763795477664,-642.54,0.00017315,2]
[394628589,1763795477674,-500.0,0.00017315,2]
[394628590,1763795477684,-500.0,0.00017315,2]
[394628591,1763795477694,-257.31268724,0.00017315,2]
[394628592,1763795477704,-1351.88,0.00017315,2]
[394628593,1763795477714,-583.12,0.00017315,2]
[394628594,1763795477724,-500.0,0.00017315,2]
[394628595,1763795477735,-500.0,0.00017315,2]
[394628596,1763795477745,-500.0,0.00017315,2]
[394628597,1763795477755,-500.0,0.00017315,2]
[394628598,1763795477764,-636.97,0.00017315,2]
[394628599,1763795477774,-500.0,0.00017315,2]
[394628600,1763795477784,-1333.56,0.00017315,2]
[394628601,1763795477794,-1003.71,0.00017315,2]
[394628602,1763795477804,-500.0,0.00017315,2]
[394628603,1763795477814,-859.95,0.00017315,2]
[394628604,1763795477824,-639.99,0.00017315,2]
[394628605,1763795477833,-500.0,0.00017315,2]
[394628606,1763795477844,-500.0,0.00017315,2]
[394628607,1763795477854,-500.0,0.00017315,2]
[394628608,1763795477864,-1231.68,0.00017315,2]
[394628609,1763795477874,-500.0,0.00017315,2]
[394628610,1763795477884,-1105.87,0.00017315,2]
[394628611,1763795477894,-500.0,0.00017315,2]
[394628612,1763795477904,-500.0,0.00017315,2]
[394628613,1763795477914,-500.0,0.00017315,2]
[394628614,1763795477924,-500.0,0.00017315,2]
[394628615,1763795477934,-1271.87,0.00017315,2]
[394628616,1763795477944,-864.09,0.00017315,2]
[394628617,1763795477954,-500.0,0.00017315,2]
[394628618,1763795477963,-668.75,0.00017315,2]
[394628619,1763795477973,-500.0,0.00017315,2]
[394628620,1763795477983,-1128.26,0.00017315,2]
[394628621,1763795477994,-500.0,0.00017315,2]
[394628622,1763795478003,-500.0,0.00017315,2]
[394628623,1763795478013,-500.0,0.00017315,2]
[394628624,1763795478023,-500.0,0.00017315,2]
[394628625,1763795478033,-1020.48,0.00017315,2]
[394628626,1763795478043,-500.0,0.00017315,2]
[394628627,1763795478053,-500.0,0.00017316,2]
[394628628,1763795478063,-500.0,0.00017316,2]
[394628629,1763795478073,-544.54093957,0.00017316,2]
[394628630,1763795478082,-300.0,0.00017316,2]
[394628631,1763795478093,-500.0,0.00017316,2]
[394628632,1763795478107,-500.0,0.00017316,2]
[394628633,1763795478118,-500.0,0.00017316,2]
[394628634,1763795478128,-500.0,0.00017316,2]
[394628635,1763795478139,-1324.57,0.00017316,2]
[394628636,1763795478149,-694.0,0.00017316,2]
[394628637,1763795478160,-500.0,0.00017316,2]
[394628638,1763795478170,-500.0,0.00017316,2]
[394628639,1763795478182,-500.0,0.00017316,2]
[394628640,1763795478192,-500.0,0.00017316,2]
[394628641,1763795478201,-236.17991134,0.00017316,2]
[394628642,1763795478213,-861.45,0.00017316,2]
[394628643,1763795478223,-778.01,0.00017316,2]
[394628644,1763795478235,-500.0,0.00017316,2]
[394628645,1763795478245,-500.0,0.00017316,2]
[394628646,1763795478255,-500.0,0.00017316,2]
[394628647,1763795478266,-500.0,0.00017316,2]